[Event "*** Titled Tuesday Blitz"]
[Site "Chess.com"]
[Date "2020.12.01"]
[Round "8"]
[White "KventinKarantino"]
[Black "arminmusovic"]
[Result "0-1"]
[WhiteElo "2294"]
[BlackElo "2512"]
[TimeControl "180+1"]
[EndTime "11:25:13 PST"]
[Termination "arminmusovic won by resignation"]

1. e4 {[%clk 0:02:58.6]} 1... c6 {[%clk 0:03:00.3]} 2. d4 {[%clk 0:02:58.1]}
2... d5 {[%clk 0:03:01.2]} 3. Nc3 {[%clk 0:02:58.2]} 3... dxe4 {[%clk
0:03:01.5]} 4. Nxe4 {[%clk 0:02:59]} 4... Nf6 {[%clk 0:03:02.4]} 5. Nxf6+ {[%clk
0:02:57.8]} 5... exf6 {[%clk 0:03:03.3]} 6. c3 {[%clk 0:02:58.3]} 6... Bd6
{[%clk 0:02:55]} 7. Bd3 {[%clk 0:02:58.2]} 7... O-O {[%clk 0:02:55]} 8. Qc2
{[%clk 0:02:57.8]} 8... Re8+ {[%clk 0:02:55.9]} 9. Ne2 {[%clk 0:02:57.5]} 9...
Kh8 {[%clk 0:02:56.5]} 10. Be3 {[%clk 0:02:55.1]} 10... Nd7 {[%clk 0:02:56.1]}
11. h4 {[%clk 0:02:52.9]} 11... Nf8 {[%clk 0:02:55.4]} 12. h5 {[%clk 0:02:52.5]}
12... Qc7 {[%clk 0:02:51.7]} 13. O-O-O {[%clk 0:02:51.7]} 13... c5 {[%clk
0:02:52.2]} 14. Rdg1 {[%clk 0:02:39.2]} 14... Bg4 {[%clk 0:02:50.5]} 15. dxc5
{[%clk 0:02:28.3]} 15... Bxc5 {[%clk 0:02:48.8]} 16. Nd4 {[%clk 0:02:28.1]}
16... Rad8 {[%clk 0:02:41.2]} 17. h6 {[%clk 0:02:14.2]} 17... g6 {[%clk
0:02:38.5]} 18. Kb1 {[%clk 0:01:53.6]} 18... a6 {[%clk 0:02:36.2]} 19. Rh4
{[%clk 0:01:42.1]} 19... Bc8 {[%clk 0:02:26.2]} 20. Rf1 {[%clk 0:01:31.4]} 20...
Re7 {[%clk 0:02:23]} 21. Rf4 {[%clk 0:01:19.9]} 21... f5 {[%clk 0:02:15.6]} 22.
Qb3 {[%clk 0:00:57.8]} 22... Ne6 {[%clk 0:02:03.5]} 23. Nxe6 {[%clk 0:00:54.3]}
23... Bxe6 {[%clk 0:02:02.8]} 24. Bc4 {[%clk 0:00:53.7]} 24... Bxe3 {[%clk
0:02:00.4]} 25. fxe3 {[%clk 0:00:53.6]} 25... Qe5 {[%clk 0:01:44.5]} 26. Qb4
{[%clk 0:00:36.1]} 26... Bxc4 {[%clk 0:01:33.8]} 27. Rxc4 {[%clk 0:00:34]} 27...
Qxe3 {[%clk 0:01:29.2]} 28. a3 {[%clk 0:00:34]} 28... Qd3+ {[%clk 0:01:18.3]}
29. Ka2 {[%clk 0:00:33.8]} 29... Qxf1 {[%clk 0:01:13.8]} 30. Qxe7 {[%clk
0:00:32.2]} 30... Qxc4+ {[%clk 0:01:13.7]} 31. b3 {[%clk 0:00:32.2]} 31... Rd2+
{[%clk 0:01:12.4]} 0-1

[Event "*** Titled Tuesday Blitz"]
[Site "Chess.com"]
[Date "2020.12.01"]
[Round "8"]
[White "Supernotar"]
[Black "IMVoja"]
[Result "1-0"]
[WhiteElo "2776"]
[BlackElo "2478"]
[TimeControl "180+1"]
[EndTime "11:25:16 PST"]
[Termination "Supernotar won by resignation"]

1. d4 {[%clk 0:03:00.9]} 1... e6 {[%clk 0:02:55.7]} 2. c4 {[%clk 0:03:01.2]}
2... f5 {[%clk 0:02:53.7]} 3. Nf3 {[%clk 0:03:01.7]} 3... Nf6 {[%clk 0:02:53.7]}
4. g3 {[%clk 0:03:02.2]} 4... d5 {[%clk 0:02:53.9]} 5. Bg2 {[%clk 0:03:02.4]}
5... c6 {[%clk 0:02:54.5]} 6. O-O {[%clk 0:03:02.8]} 6... Bd6 {[%clk 0:02:55.1]}
7. b3 {[%clk 0:03:03.4]} 7... Qe7 {[%clk 0:02:55.2]} 8. a4 {[%clk 0:03:03.8]}
8... a5 {[%clk 0:02:55.5]} 9. Ba3 {[%clk 0:03:04.2]} 9... Bxa3 {[%clk
0:02:53.7]} 10. Nxa3 {[%clk 0:03:05.1]} 10... O-O {[%clk 0:02:53]} 11. Nc2
{[%clk 0:03:05.6]} 11... b6 {[%clk 0:02:41.1]} 12. Nce1 {[%clk 0:03:05.7]} 12...
Ba6 {[%clk 0:02:37.7]} 13. Qc1 {[%clk 0:03:05.9]} 13... Nbd7 {[%clk 0:02:35.8]}
14. Nd3 {[%clk 0:03:05.9]} 14... Rac8 {[%clk 0:02:34.5]} 15. Ra2 {[%clk
0:02:40.8]} 15... c5 {[%clk 0:02:32.2]} 16. cxd5 {[%clk 0:02:35.4]} 16... Nxd5
{[%clk 0:02:25.9]} 17. dxc5 {[%clk 0:02:29.2]} 17... Nxc5 {[%clk 0:02:25.5]} 18.
Nxc5 {[%clk 0:02:27.3]} 18... Rxc5 {[%clk 0:02:25.3]} 19. Qa3 {[%clk 0:02:17.9]}
19... Rfc8 {[%clk 0:02:17.9]} 20. Rd2 {[%clk 0:02:14]} 20... Nb4 {[%clk
0:02:16.2]} 21. Rfd1 {[%clk 0:02:03.7]} 21... Nd5 {[%clk 0:02:11.1]} 22. Ne5
{[%clk 0:01:55.9]} 22... Bb7 {[%clk 0:02:03.8]} 23. e4 {[%clk 0:01:33.8]} 23...
fxe4 {[%clk 0:01:56.5]} 24. Bxe4 {[%clk 0:01:29.6]} 24... Qc7 {[%clk 0:01:53.1]}
25. Nc4 {[%clk 0:01:22.1]} 25... Nf6 {[%clk 0:01:22]} 26. Bxb7 {[%clk
0:01:17.6]} 26... Qxb7 {[%clk 0:01:22.2]} 27. Nd6 {[%clk 0:01:17.8]} 27... Qf3
{[%clk 0:01:05.2]} 28. Nxc8 {[%clk 0:01:14.5]} 28... Rxc8 {[%clk 0:01:04.6]} 29.
Qe7 {[%clk 0:01:07.8]} 29... h5 {[%clk 0:00:59.3]} 30. Qxe6+ {[%clk 0:01:06.1]}
30... Kh7 {[%clk 0:00:54.4]} 31. Qxc8 {[%clk 0:01:04.1]} 31... Ne4 {[%clk
0:00:53.5]} 32. Qc2 {[%clk 0:00:58.9]} 32... g6 {[%clk 0:00:50.8]} 33. Qc7+
{[%clk 0:00:58.8]} 33... Kh6 {[%clk 0:00:48.5]} 34. Qf4+ {[%clk 0:00:58.7]}
34... Qxf4 {[%clk 0:00:48.7]} 35. gxf4 {[%clk 0:00:59]} 1-0

[Event "*** Titled Tuesday Blitz"]
[Site "Chess.com"]
[Date "2020.12.01"]
[Round "8"]
[White "Mbneu"]
[Black "chessmadara"]
[Result "1-0"]
[WhiteElo "2319"]
[BlackElo "2186"]
[TimeControl "180+1"]
[EndTime "11:25:17 PST"]
[Termination "Mbneu won by checkmate"]

1. d4 {[%clk 0:02:53.4]} 1... Nf6 {[%clk 0:02:59.3]} 2. c4 {[%clk 0:02:52.9]}
2... g6 {[%clk 0:02:59.4]} 3. Nc3 {[%clk 0:02:52.6]} 3... d5 {[%clk 0:02:59.8]}
4. cxd5 {[%clk 0:02:52.5]} 4... Nxd5 {[%clk 0:03:00.7]} 5. g3 {[%clk 0:02:52.6]}
5... Bg7 {[%clk 0:02:58.9]} 6. Bg2 {[%clk 0:02:53.2]} 6... Nxc3 {[%clk
0:02:55.4]} 7. bxc3 {[%clk 0:02:54.1]} 7... c5 {[%clk 0:02:54.7]} 8. e3 {[%clk
0:02:54.5]} 8... O-O {[%clk 0:02:54.4]} 9. Ne2 {[%clk 0:02:55]} 9... Nc6 {[%clk
0:02:50.6]} 10. O-O {[%clk 0:02:55.3]} 10... Bg4 {[%clk 0:02:46]} 11. h3 {[%clk
0:02:53.6]} 11... Bxe2 {[%clk 0:02:36.6]} 12. Qxe2 {[%clk 0:02:52.8]} 12... cxd4
{[%clk 0:02:34]} 13. cxd4 {[%clk 0:02:51.9]} 13... e5 {[%clk 0:02:34.5]} 14. d5
{[%clk 0:02:50.9]} 14... e4 {[%clk 0:02:27.5]} 15. dxc6 {[%clk 0:02:43.7]} 15...
Bxa1 {[%clk 0:02:26.5]} 16. cxb7 {[%clk 0:02:42.7]} 16... Rb8 {[%clk 0:02:25.1]}
17. Ba3 {[%clk 0:02:41.7]} 17... Re8 {[%clk 0:01:32.7]} 18. Rxa1 {[%clk
0:02:38.6]} 18... Rxb7 {[%clk 0:01:32.6]} 19. Bc5 {[%clk 0:02:34.2]} 19... Qd5
{[%clk 0:01:26.9]} 20. Bd4 {[%clk 0:02:33.3]} 20... Rc7 {[%clk 0:01:19.1]} 21.
Qg4 {[%clk 0:02:29.3]} 21... f5 {[%clk 0:01:08.6]} 22. Qg5 {[%clk 0:02:12.1]}
22... Re6 {[%clk 0:00:50.4]} 23. Rb1 {[%clk 0:01:58.2]} 23... Rc8 {[%clk
0:00:47.7]} 24. Kh2 {[%clk 0:01:46.9]} 24... Qxa2 {[%clk 0:00:10]} 25. Rb7
{[%clk 0:01:40.9]} 25... Qxf2 {[%clk 0:00:09.5]} 26. Rg7+ {[%clk 0:01:34.1]}
26... Kf8 {[%clk 0:00:08.9]} 27. Qh6 {[%clk 0:01:27.7]} 27... Ke8 {[%clk
0:00:07.9]} 28. Qxh7 {[%clk 0:01:26.7]} 28... Kd8 {[%clk 0:00:04.7]} 29. Rg8+
{[%clk 0:01:23.4]} 29... Re8 {[%clk 0:00:04.6]} 30. Bf6# {[%clk 0:01:23.4]} 1-0

[Event "*** Titled Tuesday Blitz"]
[Site "Chess.com"]
[Date "2020.12.01"]
[Round "8"]
[White "Orest_Vovk"]
[Black "JoliyRoger"]
[Result "1-0"]
[WhiteElo "2557"]
[BlackElo "2397"]
[TimeControl "180+1"]
[EndTime "11:25:19 PST"]
[Termination "Orest_Vovk won on time"]

1. g4 {[%clk 0:03:00.9]} 1... d6 {[%clk 0:00:41.5]} 2. Bg2 {[%clk 0:02:56.5]}
2... c6 {[%clk 0:00:39.5]} 3. h3 {[%clk 0:02:56]} 3... g6 {[%clk 0:00:39.6]} 4.
d4 {[%clk 0:02:55.9]} 4... Bg7 {[%clk 0:00:40.1]} 5. Nc3 {[%clk 0:02:56]} 5...
d5 {[%clk 0:00:39.4]} 6. Bf4 {[%clk 0:02:54.5]} 6... Nd7 {[%clk 0:00:39.3]} 7.
Nf3 {[%clk 0:02:54.1]} 7... Qb6 {[%clk 0:00:38.6]} 8. b3 {[%clk 0:02:51.2]} 8...
e6 {[%clk 0:00:37.2]} 9. Qd2 {[%clk 0:02:49.5]} 9... a6 {[%clk 0:00:37.3]} 10.
Na4 {[%clk 0:02:49.4]} 10... Qd8 {[%clk 0:00:36.5]} 11. O-O {[%clk 0:02:40.2]}
11... Ngf6 {[%clk 0:00:36.2]} 12. Ne5 {[%clk 0:02:39.1]} 12... O-O {[%clk
0:00:32.5]} 13. c4 {[%clk 0:02:34.3]} 13... Ne4 {[%clk 0:00:22.4]} 14. Bxe4
{[%clk 0:02:32.2]} 14... dxe4 {[%clk 0:00:22.6]} 15. Nxd7 {[%clk 0:02:30.5]}
15... Bxd7 {[%clk 0:00:22.8]} 16. Be5 {[%clk 0:02:27.4]} 16... f6 {[%clk
0:00:22.5]} 17. Bd6 {[%clk 0:02:26.4]} 17... Re8 {[%clk 0:00:21.7]} 18. c5
{[%clk 0:02:26.7]} 18... e5 {[%clk 0:00:20.3]} 19. d5 {[%clk 0:02:24.2]} 19...
h5 {[%clk 0:00:19.6]} 20. f3 {[%clk 0:02:17.1]} 20... exf3 {[%clk 0:00:18.9]}
21. exf3 {[%clk 0:02:17]} 21... e4 {[%clk 0:00:19.3]} 22. Rae1 {[%clk
0:02:10.4]} 22... exf3 {[%clk 0:00:18.7]} 23. Nb6 {[%clk 0:02:08.6]} 23... Rxe1
{[%clk 0:00:17.7]} 24. Rxe1 {[%clk 0:02:05.9]} 24... hxg4 {[%clk 0:00:17.7]} 25.
Nxa8 {[%clk 0:02:02.9]} 25... Qxa8 {[%clk 0:00:18.2]} 26. Re7 {[%clk 0:02:01.2]}
26... Bf5 {[%clk 0:00:15.3]} 27. hxg4 {[%clk 0:02:00.1]} 27... Bxg4 {[%clk
0:00:15]} 28. dxc6 {[%clk 0:01:50.1]} 28... bxc6 {[%clk 0:00:15.3]} 29. Qe3
{[%clk 0:01:49.6]} 29... Bf8 {[%clk 0:00:10.4]} 30. Re8 {[%clk 0:01:46.4]} 30...
Qb7 {[%clk 0:00:09]} 31. Rxf8+ {[%clk 0:01:45.4]} 31... Kg7 {[%clk 0:00:09.9]}
32. Qe7+ {[%clk 0:01:40.2]} 32... Qxe7 {[%clk 0:00:10.1]} 33. Bxe7 {[%clk
0:01:41.1]} 33... f5 {[%clk 0:00:09.9]} 34. Rf6 {[%clk 0:01:38.5]} 1-0

[Event "*** Titled Tuesday Blitz"]
[Site "Chess.com"]
[Date "2020.12.01"]
[Round "8"]
[White "Morshynska"]
[Black "MF1966Idrisov"]
[Result "1-0"]
[WhiteElo "2280"]
[BlackElo "2375"]
[TimeControl "180+1"]
[EndTime "11:25:24 PST"]
[Termination "Morshynska won by resignation"]

1. Nf3 {[%clk 0:03:00.9]} 1... d5 {[%clk 0:02:58.5]} 2. g3 {[%clk 0:03:00.5]}
2... Nf6 {[%clk 0:02:58.7]} 3. Bg2 {[%clk 0:03:00.2]} 3... b6 {[%clk 0:02:59]}
4. O-O {[%clk 0:02:59.2]} 4... Bb7 {[%clk 0:02:59.2]} 5. d4 {[%clk 0:02:55.2]}
5... e6 {[%clk 0:02:58.6]} 6. c4 {[%clk 0:02:54.2]} 6... Nbd7 {[%clk 0:02:58.6]}
7. Nbd2 {[%clk 0:02:52.8]} 7... Bd6 {[%clk 0:02:58.5]} 8. b3 {[%clk 0:02:31.8]}
8... O-O {[%clk 0:02:57.3]} 9. Bb2 {[%clk 0:02:31.3]} 9... Rc8 {[%clk
0:02:42.9]} 10. Rc1 {[%clk 0:02:27.3]} 10... c5 {[%clk 0:02:42]} 11. e3 {[%clk
0:02:19.2]} 11... Qe7 {[%clk 0:02:41.4]} 12. Ne5 {[%clk 0:02:06.9]} 12... cxd4
{[%clk 0:02:37.3]} 13. exd4 {[%clk 0:02:04.3]} 13... Ba3 {[%clk 0:02:36.2]} 14.
Bxa3 {[%clk 0:01:49.4]} 14... Qxa3 {[%clk 0:02:34.7]} 15. Rc2 {[%clk 0:01:46.7]}
15... Nxe5 {[%clk 0:02:28.3]} 16. dxe5 {[%clk 0:01:47.6]} 16... Nd7 {[%clk
0:02:28.2]} 17. cxd5 {[%clk 0:01:23.8]} 17... Bxd5 {[%clk 0:02:19.2]} 18. Bxd5
{[%clk 0:01:18.6]} 18... exd5 {[%clk 0:02:19.1]} 19. Nf3 {[%clk 0:00:50.5]}
19... Qa5 {[%clk 0:01:54.8]} 20. Qd3 {[%clk 0:00:37.8]} 20... Rxc2 {[%clk
0:01:39.8]} 21. Qxc2 {[%clk 0:00:38.7]} 21... Qc5 {[%clk 0:01:39.7]} 22. Qf5
{[%clk 0:00:33.4]} 22... Rd8 {[%clk 0:01:25.5]} 23. Ng5 {[%clk 0:00:21.4]} 23...
h6 {[%clk 0:01:13.8]} 24. Qxf7+ {[%clk 0:00:18.7]} 24... Kh8 {[%clk 0:01:12.6]}
25. Ne6 {[%clk 0:00:12.7]} 1-0

[Event "*** Titled Tuesday Blitz"]
[Site "Chess.com"]
[Date "2020.12.01"]
[Round "8"]
[White "NMZanette"]
[Black "AniJak"]
[Result "0-1"]
[WhiteElo "2258"]
[BlackElo "2388"]
[TimeControl "180+1"]
[EndTime "11:25:28 PST"]
[Termination "AniJak won by resignation"]

1. e4 {[%clk 0:03:00.9]} 1... c6 {[%clk 0:03:00.1]} 2. d4 {[%clk 0:02:59.8]}
2... d5 {[%clk 0:03:00.6]} 3. e5 {[%clk 0:02:58.6]} 3... Bf5 {[%clk 0:02:59.5]}
4. Nf3 {[%clk 0:02:53.4]} 4... e6 {[%clk 0:02:59.6]} 5. Be2 {[%clk 0:02:53.5]}
5... Nd7 {[%clk 0:02:59.1]} 6. O-O {[%clk 0:02:46.2]} 6... Ne7 {[%clk
0:02:58.9]} 7. Nh4 {[%clk 0:02:40.9]} 7... Qc7 {[%clk 0:02:56]} 8. c3 {[%clk
0:02:33.9]} 8... h6 {[%clk 0:02:56]} 9. Nxf5 {[%clk 0:02:29.6]} 9... Nxf5 {[%clk
0:02:56.9]} 10. Bd3 {[%clk 0:02:29.3]} 10... g6 {[%clk 0:02:52.7]} 11. Re1
{[%clk 0:02:29.2]} 11... c5 {[%clk 0:02:50]} 12. Be3 {[%clk 0:02:14.5]} 12... c4
{[%clk 0:02:25]} 13. Bc2 {[%clk 0:02:11.7]} 13... O-O-O {[%clk 0:02:24.1]} 14.
b3 {[%clk 0:02:10.3]} 14... Kb8 {[%clk 0:02:19.6]} 15. bxc4 {[%clk 0:02:08.4]}
15... dxc4 {[%clk 0:02:19.5]} 16. Nd2 {[%clk 0:02:08.1]} 16... Nb6 {[%clk
0:02:19.3]} 17. Ne4 {[%clk 0:02:08.2]} 17... Nd5 {[%clk 0:02:14.9]} 18. Qb1
{[%clk 0:02:03.1]} 18... Ka8 {[%clk 0:02:04.5]} 19. a4 {[%clk 0:02:02.2]} 19...
Be7 {[%clk 0:01:56.9]} 20. Qb2 {[%clk 0:01:55.1]} 20... f6 {[%clk 0:01:56.6]}
21. exf6 {[%clk 0:01:49.6]} 21... Nxf6 {[%clk 0:01:56.1]} 22. a5 {[%clk
0:01:42.3]} 22... Nd5 {[%clk 0:01:42.6]} 23. Nd2 {[%clk 0:01:29.5]} 23... a6
{[%clk 0:01:38.8]} 24. Be4 {[%clk 0:01:23.3]} 24... Bd6 {[%clk 0:01:37.8]} 25.
Nf1 {[%clk 0:01:22.3]} 25... g5 {[%clk 0:01:31.8]} 26. Reb1 {[%clk 0:01:11.7]}
26... Nfxe3 {[%clk 0:01:26]} 27. fxe3 {[%clk 0:01:10.5]} 27... Rhf8 {[%clk
0:01:25.9]} 28. Ra4 {[%clk 0:01:00.5]} 28... Rf7 {[%clk 0:01:11.6]} 29. h3
{[%clk 0:00:40.8]} 29... Rdf8 {[%clk 0:01:11.4]} 30. Bf3 {[%clk 0:00:31.8]}
30... h5 {[%clk 0:01:10.2]} 31. Bxh5 {[%clk 0:00:27.2]} 31... Rxf1+ {[%clk
0:01:08.5]} 0-1

[Event "*** Titled Tuesday Blitz"]
[Site "Chess.com"]
[Date "2020.12.01"]
[Round "8"]
[White "Duhless"]
[Black "Azerichess"]
[Result "1-0"]
[WhiteElo "3016"]
[BlackElo "2962"]
[TimeControl "180+1"]
[EndTime "11:25:29 PST"]
[Termination "Duhless won by resignation"]

1. d4 {[%clk 0:03:00.9]} 1... d5 {[%clk 0:02:56.6]} 2. c4 {[%clk 0:03:00.2]}
2... c5 {[%clk 0:02:55.7]} 3. Nf3 {[%clk 0:02:56.5]} 3... cxd4 {[%clk
0:02:53.9]} 4. cxd5 {[%clk 0:02:53.4]} 4... Qxd5 {[%clk 0:02:52.4]} 5. Nc3
{[%clk 0:02:53.9]} 5... Qa5 {[%clk 0:02:50.2]} 6. Nxd4 {[%clk 0:02:54.3]} 6...
Nf6 {[%clk 0:02:45.3]} 7. e4 {[%clk 0:02:54.2]} 7... Nxe4 {[%clk 0:02:30.2]} 8.
Bb5+ {[%clk 0:02:53.1]} 8... Bd7 {[%clk 0:02:29.6]} 9. O-O {[%clk 0:02:51.3]}
9... Nxc3 {[%clk 0:02:28.9]} 10. Bxd7+ {[%clk 0:02:49.9]} 10... Nxd7 {[%clk
0:02:28.1]} 11. bxc3 {[%clk 0:02:50.8]} 11... e5 {[%clk 0:02:20.9]} 12. Nf5
{[%clk 0:02:26.2]} 12... O-O-O {[%clk 0:01:55.7]} 13. Rb1 {[%clk 0:02:22.3]}
13... g6 {[%clk 0:01:51.9]} 14. Nd6+ {[%clk 0:02:02.3]} 14... Bxd6 {[%clk
0:01:50.4]} 15. Qxd6 {[%clk 0:02:03.2]} 15... Qc7 {[%clk 0:01:50.4]} 16. Qa3
{[%clk 0:02:00.6]} 16... Qc5 {[%clk 0:01:37.3]} 17. Qa4 {[%clk 0:01:55.1]} 17...
a6 {[%clk 0:01:15.1]} 18. Rb4 {[%clk 0:01:50.6]} 18... Qd5 {[%clk 0:00:54]} 19.
Be3 {[%clk 0:01:39.2]} 19... Nb8 {[%clk 0:00:52.1]} 20. Rfb1 {[%clk 0:01:03]}
20... b5 {[%clk 0:00:43.7]} 21. c4 {[%clk 0:00:35.8]} 21... bxa4 {[%clk
0:00:34.1]} 22. cxd5 {[%clk 0:00:33.2]} 22... Kd7 {[%clk 0:00:34.3]} 23. Ba7
{[%clk 0:00:30.2]} 1-0

[Event "*** Titled Tuesday Blitz"]
[Site "Chess.com"]
[Date "2020.12.01"]
[Round "8"]
[White "nitpicker"]
[Black "amatatanav"]
[Result "1-0"]
[WhiteElo "2268"]
[BlackElo "2382"]
[TimeControl "180+1"]
[EndTime "11:25:30 PST"]
[Termination "nitpicker won on time"]

1. d4 {[%clk 0:03:00.9]} 1... Nf6 {[%clk 0:02:59.8]} 2. c4 {[%clk 0:03:00.9]}
2... e6 {[%clk 0:03:00.2]} 3. g3 {[%clk 0:03:00.2]} 3... d5 {[%clk 0:03:00.5]}
4. Nf3 {[%clk 0:02:59.9]} 4... Bb4+ {[%clk 0:03:01]} 5. Bd2 {[%clk 0:02:58.5]}
5... Be7 {[%clk 0:03:00.4]} 6. Qc2 {[%clk 0:02:58.8]} 6... O-O {[%clk
0:02:59.9]} 7. Bg2 {[%clk 0:02:58.9]} 7... Nbd7 {[%clk 0:02:53.5]} 8. O-O {[%clk
0:02:58.1]} 8... c6 {[%clk 0:02:53]} 9. Rd1 {[%clk 0:02:57.2]} 9... b6 {[%clk
0:02:52.9]} 10. Bf4 {[%clk 0:02:56.8]} 10... Bb7 {[%clk 0:02:49.4]} 11. Nbd2
{[%clk 0:02:54.8]} 11... Rc8 {[%clk 0:02:48.1]} 12. Rac1 {[%clk 0:02:54.7]}
12... c5 {[%clk 0:02:46.7]} 13. Qb1 {[%clk 0:02:42.6]} 13... cxd4 {[%clk
0:02:13.3]} 14. cxd5 {[%clk 0:02:42.1]} 14... Bxd5 {[%clk 0:01:58.1]} 15. Ne5
{[%clk 0:02:11.9]} 15... Rxc1 {[%clk 0:01:41.4]} 16. Rxc1 {[%clk 0:02:09.9]}
16... Nxe5 {[%clk 0:01:37]} 17. Bxe5 {[%clk 0:02:08.9]} 17... Bxg2 {[%clk
0:01:35.4]} 18. Kxg2 {[%clk 0:02:09.2]} 18... Qd5+ {[%clk 0:01:29.3]} 19. Nf3
{[%clk 0:02:09.1]} 19... Ng4 {[%clk 0:00:43.3]} 20. Bxd4 {[%clk 0:02:04.1]}
20... e5 {[%clk 0:00:43.4]} 21. Qf5 {[%clk 0:01:46.7]} 21... Qxa2 {[%clk
0:00:10.7]} 22. Nxe5 {[%clk 0:01:31.4]} 22... Nxe5 {[%clk 0:00:09.5]} 23. Bxe5
{[%clk 0:01:29.7]} 23... Qd5+ {[%clk 0:00:08.8]} 24. e4 {[%clk 0:01:23.9]} 24...
Qb5 {[%clk 0:00:08.7]} 25. Rc7 {[%clk 0:01:20.5]} 25... Re8 {[%clk 0:00:08]} 26.
Rxa7 {[%clk 0:01:10.7]} 26... f6 {[%clk 0:00:07.3]} 27. Qe6+ {[%clk 0:01:10.4]}
27... Kf8 {[%clk 0:00:07]} 28. Bd6 {[%clk 0:01:07.3]} 1-0

[Event "*** Titled Tuesday Blitz"]
[Site "Chess.com"]
[Date "2020.12.01"]
[Round "8"]
[White "BlixLT"]
[Black "kinga2008"]
[Result "0-1"]
[WhiteElo "2320"]
[BlackElo "2196"]
[TimeControl "180+1"]
[EndTime "11:25:31 PST"]
[Termination "kinga2008 won by resignation"]

1. d4 {[%clk 0:02:58.6]} 1... g6 {[%clk 0:02:59.6]} 2. e4 {[%clk 0:02:57.1]}
2... Bg7 {[%clk 0:03:00.1]} 3. Nc3 {[%clk 0:02:57.7]} 3... d6 {[%clk 0:03:00.1]}
4. g3 {[%clk 0:02:58.2]} 4... e5 {[%clk 0:03:00.7]} 5. dxe5 {[%clk 0:02:54.8]}
5... dxe5 {[%clk 0:03:00.6]} 6. Qxd8+ {[%clk 0:02:54.7]} 6... Kxd8 {[%clk
0:03:01.4]} 7. Be3 {[%clk 0:02:53.1]} 7... c6 {[%clk 0:02:54.3]} 8. O-O-O+
{[%clk 0:02:51.9]} 8... Kc7 {[%clk 0:02:54.3]} 9. f4 {[%clk 0:02:52.2]} 9... Bg4
{[%clk 0:02:51.9]} 10. Rd2 {[%clk 0:02:49.9]} 10... Nd7 {[%clk 0:02:51.4]} 11.
h3 {[%clk 0:02:49.2]} 11... Be6 {[%clk 0:02:50.3]} 12. Nf3 {[%clk 0:02:48.5]}
12... Ne7 {[%clk 0:02:49.1]} 13. g4 {[%clk 0:02:47.3]} 13... Rad8 {[%clk
0:02:44.2]} 14. f5 {[%clk 0:02:45.9]} 14... gxf5 {[%clk 0:02:43.8]} 15. gxf5
{[%clk 0:02:46.4]} 15... Bxf5 {[%clk 0:02:44.5]} 16. exf5 {[%clk 0:02:46.7]}
16... Nxf5 {[%clk 0:02:45.2]} 17. Bg5 {[%clk 0:02:43.3]} 17... f6 {[%clk
0:02:44.4]} 18. Bh4 {[%clk 0:02:41.9]} 18... Bh6 {[%clk 0:02:39.7]} 19. Bd3
{[%clk 0:02:33.5]} 19... Nxh4 {[%clk 0:02:27.9]} 20. Nxh4 {[%clk 0:02:31.2]}
20... Nc5 {[%clk 0:02:27.9]} 21. Rd1 {[%clk 0:01:17.2]} 21... Nxd3+ {[%clk
0:02:09.5]} 22. cxd3 {[%clk 0:01:17.6]} 22... Rxd3 {[%clk 0:02:10.1]} 23. Nf5
{[%clk 0:01:16.6]} 23... Bxd2+ {[%clk 0:01:50.8]} 24. Rxd2 {[%clk 0:01:16]}
24... Rhd8 {[%clk 0:01:48.8]} 25. Ne4 {[%clk 0:01:07.7]} 25... Rxd2 {[%clk
0:01:29]} 26. Nxd2 {[%clk 0:01:06.8]} 26... Kd7 {[%clk 0:01:28.6]} 27. Ng3
{[%clk 0:00:56.1]} 27... Ke6 {[%clk 0:01:25.8]} 28. Nge4 {[%clk 0:00:56.1]}
28... b6 {[%clk 0:01:21.2]} 29. Kd1 {[%clk 0:00:56.1]} 29... f5 {[%clk
0:01:19.5]} 30. Nf2 {[%clk 0:00:56.3]} 30... e4 {[%clk 0:01:19.6]} 31. Ke2
{[%clk 0:00:56.1]} 31... b5 {[%clk 0:01:13.6]} 32. a4 {[%clk 0:00:53]} 32... Ke5
{[%clk 0:01:11.6]} 33. axb5 {[%clk 0:00:43.3]} 33... cxb5 {[%clk 0:01:11.2]} 34.
Nd1 {[%clk 0:00:43.7]} 34... f4 {[%clk 0:01:09.3]} 35. Nc3 {[%clk 0:00:43.4]}
35... f3+ {[%clk 0:01:04.8]} 36. Ke1 {[%clk 0:00:34.1]} 36... f2+ {[%clk
0:01:02.5]} 37. Ke2 {[%clk 0:00:34.6]} 37... Rxd2+ {[%clk 0:01:00.4]} 0-1

[Event "*** Titled Tuesday Blitz"]
[Site "Chess.com"]
[Date "2020.12.01"]
[Round "8"]
[White "r31415"]
[Black "Pelopidass"]
[Result "1-0"]
[WhiteElo "2492"]
[BlackElo "2560"]
[TimeControl "180+1"]
[EndTime "11:25:33 PST"]
[Termination "r31415 won by resignation"]

1. e4 {[%clk 0:03:00.9]} 1... c5 {[%clk 0:02:59.5]} 2. Nf3 {[%clk 0:03:00.8]}
2... d6 {[%clk 0:02:59.9]} 3. d4 {[%clk 0:03:01.2]} 3... cxd4 {[%clk 0:03:00.8]}
4. Nxd4 {[%clk 0:03:01.6]} 4... Nf6 {[%clk 0:03:01.3]} 5. Nc3 {[%clk 0:03:02.2]}
5... a6 {[%clk 0:03:01.9]} 6. h3 {[%clk 0:03:02.7]} 6... e5 {[%clk 0:03:01.8]}
7. Nde2 {[%clk 0:03:03.2]} 7... Be7 {[%clk 0:03:02.3]} 8. g4 {[%clk 0:03:03.7]}
8... Be6 {[%clk 0:03:02]} 9. Bg2 {[%clk 0:03:03.8]} 9... Nbd7 {[%clk 0:03:00.7]}
10. Be3 {[%clk 0:02:55.7]} 10... b5 {[%clk 0:02:57.1]} 11. Ng3 {[%clk
0:02:54.8]} 11... Nb6 {[%clk 0:02:51.4]} 12. O-O {[%clk 0:02:45.3]} 12... g6
{[%clk 0:02:49.7]} 13. f4 {[%clk 0:02:31.6]} 13... Nc4 {[%clk 0:02:47.7]} 14.
Bc1 {[%clk 0:02:30.9]} 14... Qb6+ {[%clk 0:02:44.2]} 15. Kh2 {[%clk 0:02:28.3]}
15... Bxg4 {[%clk 0:02:32.9]} 16. hxg4 {[%clk 0:02:27.4]} 16... h5 {[%clk
0:02:33.3]} 17. gxh5 {[%clk 0:02:10.6]} 17... Nxh5 {[%clk 0:02:28.3]} 18. Bh3
{[%clk 0:02:09.5]} 18... exf4 {[%clk 0:02:05.9]} 19. Bxf4 {[%clk 0:02:07.4]}
19... Ne3 {[%clk 0:02:01]} 20. Bxe3 {[%clk 0:02:03.9]} 20... Qxe3 {[%clk
0:02:01.9]} 21. Rf3 {[%clk 0:02:01.8]} 21... Qg5 {[%clk 0:01:56.1]} 22. Qd5
{[%clk 0:01:53.3]} 22... Qh4 {[%clk 0:01:40.1]} 23. Qxa8+ {[%clk 0:01:50.1]}
23... Bd8 {[%clk 0:01:40.4]} 24. Qc6+ {[%clk 0:01:44.2]} 24... Kf8 {[%clk
0:01:37.7]} 25. Qxd6+ {[%clk 0:01:35.5]} 25... Be7 {[%clk 0:01:37.5]} 26. Qxg6
{[%clk 0:01:20.5]} 26... Qxh3+ {[%clk 0:01:30.4]} 27. Kxh3 {[%clk 0:01:20.6]}
27... Nf4+ {[%clk 0:01:30.8]} 28. Kg4 {[%clk 0:01:17.7]} 28... Nxg6 {[%clk
0:01:15.1]} 29. Rf5 {[%clk 0:01:10.6]} 29... Nh4 {[%clk 0:01:03.5]} 30. Rh5
{[%clk 0:01:06.4]} 30... Rg8+ {[%clk 0:01:03.2]} 31. Kh3 {[%clk 0:01:05.9]}
31... Ng6 {[%clk 0:00:57.4]} 32. Nd5 {[%clk 0:01:06.2]} 32... Bd6 {[%clk
0:00:56.4]} 33. Nf5 {[%clk 0:01:03.7]} 33... Be5 {[%clk 0:00:51.2]} 34. c3
{[%clk 0:00:58.5]} 34... f6 {[%clk 0:00:37.8]} 35. a4 {[%clk 0:00:57.3]} 35...
b4 {[%clk 0:00:37.3]} 36. cxb4 {[%clk 0:00:54]} 36... Kf7 {[%clk 0:00:36.5]} 37.
Nh6+ {[%clk 0:00:52.8]} 1-0